[Event "Late-Titled-Tuesday-Blitz-July-09-2024"]
[Site "Chess.com"]
[Date "2024.07.09"]
[Round "10"]
[White "grzechu96"]
[Black "carokannlover213"]
[Result "0-1"]
[WhiteElo "2803"]
[BlackElo "2722"]
[TimeControl "180+1"]
[EndTime "15:55:38 PDT"]
[Termination "carokannlover213 won on time"]

1. e4 {[%clk 0:03:00.9]} 1... g6 {[%clk 0:02:48.8]} 2. d4 {[%clk 0:03:00.6]}
2... Bg7 {[%clk 0:02:49.7]} 3. Nf3 {[%clk 0:03:00.5]} 3... c6 {[%clk 0:02:49.7]}
4. Nc3 {[%clk 0:02:57.8]} 4... d5 {[%clk 0:02:50.1]} 5. h3 {[%clk 0:02:57]} 5...
dxe4 {[%clk 0:02:50.6]} 6. Nxe4 {[%clk 0:02:57.7]} 6... Nf6 {[%clk 0:02:50.7]}
7. Bd3 {[%clk 0:02:54.4]} 7... O-O {[%clk 0:02:48.2]} 8. Bg5 {[%clk 0:02:50.8]}
8... Nbd7 {[%clk 0:02:45.3]} 9. Qe2 {[%clk 0:02:48.7]} 9... c5 {[%clk
0:02:24.1]} 10. Nxc5 {[%clk 0:01:48.7]} 10... Nxc5 {[%clk 0:02:23.8]} 11. dxc5
{[%clk 0:01:49.6]} 11... Qa5+ {[%clk 0:02:21.9]} 12. c3 {[%clk 0:01:13]} 12...
Qxc5 {[%clk 0:02:16.5]} 13. O-O {[%clk 0:01:13.1]} 13... h6 {[%clk 0:02:02.9]}
14. Be3 {[%clk 0:01:12.7]} 14... Qc7 {[%clk 0:02:01.2]} 15. Bd4 {[%clk
0:01:12.4]} 15... Nd5 {[%clk 0:01:54.3]} 16. Bxg7 {[%clk 0:01:11.2]} 16... Kxg7
{[%clk 0:01:54.1]} 17. Rfe1 {[%clk 0:00:50.8]} 17... Re8 {[%clk 0:01:45.5]} 18.
Bc4 {[%clk 0:00:42]} 18... Nb6 {[%clk 0:01:41.5]} 19. Bb3 {[%clk 0:00:41.5]}
19... e5 {[%clk 0:01:36.2]} 20. Rad1 {[%clk 0:00:31.5]} 20... Bf5 {[%clk
0:01:30]} 21. Qb5 {[%clk 0:00:18]} 21... Bd7 {[%clk 0:01:23]} 22. Qa5 {[%clk
0:00:16.9]} 22... e4 {[%clk 0:01:13.1]} 23. Nd4 {[%clk 0:00:17]} 23... Re5
{[%clk 0:01:12.2]} 24. Qa3 {[%clk 0:00:15.1]} 24... Rae8 {[%clk 0:01:00]} 25.
Nc2 {[%clk 0:00:15.1]} 25... Bb5 {[%clk 0:00:54.7]} 26. Qd6 {[%clk 0:00:14.5]}
26... Qc8 {[%clk 0:00:49.1]} 27. Qd4 {[%clk 0:00:13.8]} 27... Kg8 {[%clk
0:00:45.6]} 28. a4 {[%clk 0:00:13.4]} 28... Bd3 {[%clk 0:00:41]} 29. Rxd3 {[%clk
0:00:12.4]} 29... exd3 {[%clk 0:00:38.4]} 30. Rxe5 {[%clk 0:00:13.1]} 30... Rxe5
{[%clk 0:00:21.5]} 31. Qxe5 {[%clk 0:00:14]} 31... dxc2 {[%clk 0:00:22.4]} 32.
Bxc2 {[%clk 0:00:14.4]} 32... Nc4 {[%clk 0:00:23.3]} 33. Qe2 {[%clk 0:00:11]}
33... Qc7 {[%clk 0:00:08.8]} 34. Bb3 {[%clk 0:00:10.8]} 34... Nd6 {[%clk
0:00:09.2]} 35. Bd5 {[%clk 0:00:09.8]} 35... a5 {[%clk 0:00:08.7]} 36. Qe5
{[%clk 0:00:09.8]} 36... Qd7 {[%clk 0:00:05.7]} 37. Qd4 {[%clk 0:00:09.3]} 37...
Qe7 {[%clk 0:00:04.6]} 38. Qe3 {[%clk 0:00:08.1]} 38... Qd7 {[%clk 0:00:03.6]}
39. Qe5 {[%clk 0:00:07.5]} 39... Ne8 {[%clk 0:00:02.2]} 40. Kh2 {[%clk
0:00:06.4]} 40... Ng7 {[%clk 0:00:02.4]} 41. Bb3 {[%clk 0:00:05.2]} 41... Nf5
{[%clk 0:00:02.1]} 42. Qf6 {[%clk 0:00:04.3]} 42... Kf8 {[%clk 0:00:01.5]} 43.
Qh8+ {[%clk 0:00:04]} 43... Ke7 {[%clk 0:00:02.2]} 44. Qe5+ {[%clk 0:00:04.6]}
44... Kf8 {[%clk 0:00:02.8]} 45. Qxa5 {[%clk 0:00:04.2]} 45... Qd6+ {[%clk
0:00:02.8]} 46. Kg1 {[%clk 0:00:03.2]} 46... Qd2 {[%clk 0:00:02.7]} 47. Qb4+
{[%clk 0:00:03]} 47... Kg7 {[%clk 0:00:02.9]} 48. Qxb7 {[%clk 0:00:02.4]} 48...
Qc1+ {[%clk 0:00:03]} 49. Kh2 {[%clk 0:00:01.9]} 49... Qf4+ {[%clk 0:00:03.3]}
50. Kg1 {[%clk 0:00:01.8]} 50... Qc1+ {[%clk 0:00:03.5]} 51. Kh2 {[%clk
0:00:02.4]} 51... Qf4+ {[%clk 0:00:04.2]} 52. g3 {[%clk 0:00:03.2]} 52... Qxf2+
{[%clk 0:00:04.8]} 53. Qg2 {[%clk 0:00:03.9]} 53... Qe1 {[%clk 0:00:05.4]} 54.
Bd5 {[%clk 0:00:03.5]} 54... Ne3 {[%clk 0:00:05.6]} 55. Qe4 {[%clk 0:00:03.2]}
55... Qd2+ {[%clk 0:00:05.4]} 56. Kg1 {[%clk 0:00:03.1]} 56... Qe1+ {[%clk
0:00:05.1]} 57. Kh2 {[%clk 0:00:03.1]} 57... Qd2+ {[%clk 0:00:02.3]} 58. Kg1
{[%clk 0:00:03.5]} 58... Nxd5 {[%clk 0:00:02.3]} 59. Qd4+ {[%clk 0:00:03.6]}
59... Qxd4+ {[%clk 0:00:02.9]} 60. cxd4 {[%clk 0:00:04.5]} 60... Nb4 {[%clk
0:00:03.3]} 61. Kf2 {[%clk 0:00:04.8]} 61... Kf6 {[%clk 0:00:03.9]} 62. Ke3
{[%clk 0:00:04.9]} 62... Ke6 {[%clk 0:00:04.5]} 63. Kd2 {[%clk 0:00:04.5]} 63...
Kd5 {[%clk 0:00:04.2]} 64. Kc3 {[%clk 0:00:03.3]} 64... Nc6 {[%clk 0:00:04.6]}
65. b4 {[%clk 0:00:03.1]} 65... Nxd4 {[%clk 0:00:05.3]} 66. b5 {[%clk
0:00:02.1]} 66... Kc5 {[%clk 0:00:05.7]} 67. Kd3 {[%clk 0:00:02.5]} 67... f5
{[%clk 0:00:05.1]} 68. Ke3 {[%clk 0:00:02.3]} 68... g5 {[%clk 0:00:05.2]} 69.
Kd3 {[%clk 0:00:02.4]} 69... Ne6 {[%clk 0:00:05]} 70. Ke3 {[%clk 0:00:02.3]}
70... f4+ {[%clk 0:00:04.2]} 71. gxf4 {[%clk 0:00:02.4]} 71... Nxf4 {[%clk
0:00:05.1]} 72. h4 {[%clk 0:00:02.8]} 72... Ng2+ {[%clk 0:00:05.5]} 73. Ke4
{[%clk 0:00:02.7]} 73... Nxh4 {[%clk 0:00:06.4]} 74. Ke5 {[%clk 0:00:02.8]}
74... Kb6 {[%clk 0:00:05.9]} 75. Kd6 {[%clk 0:00:01]} 75... g4 {[%clk
0:00:05.5]} 0-1

[Event "Late-Titled-Tuesday-Blitz-July-09-2024"]
[Site "Chess.com"]
[Date "2024.07.09"]
[Round "10"]
[White "adrivillu"]
[Black "Nemsko"]
[Result "1-0"]
[WhiteElo "2412"]
[BlackElo "2291"]
[TimeControl "180+1"]
[EndTime "15:56:08 PDT"]
[Termination "adrivillu won by resignation"]

1. e3 {[%clk 0:03:00.9]} 1... e5 {[%clk 0:02:56.4]} 2. f3 {[%clk 0:03:01.2]}
2... d5 {[%clk 0:02:55.6]} 3. Kf2 {[%clk 0:03:01.4]} 3... Nf6 {[%clk 0:02:56.1]}
4. Ne2 {[%clk 0:03:01.6]} 4... c5 {[%clk 0:02:55.9]} 5. d4 {[%clk 0:02:59.6]}
5... Nc6 {[%clk 0:02:53.9]} 6. c3 {[%clk 0:02:55.7]} 6... Bd6 {[%clk 0:02:52.4]}
7. Ng3 {[%clk 0:02:55.1]} 7... O-O {[%clk 0:02:51.7]} 8. Bb5 {[%clk 0:02:52.7]}
8... Re8 {[%clk 0:02:48.8]} 9. Bxc6 {[%clk 0:02:51.1]} 9... bxc6 {[%clk
0:02:49.5]} 10. Nd2 {[%clk 0:02:46.7]} 10... cxd4 {[%clk 0:02:48]} 11. cxd4
{[%clk 0:02:45]} 11... Qb6 {[%clk 0:02:40.2]} 12. Nb3 {[%clk 0:02:43.7]} 12...
a5 {[%clk 0:02:34.4]} 13. Qc2 {[%clk 0:02:37.4]} 13... Ba6 {[%clk 0:02:15.8]}
14. Bd2 {[%clk 0:02:26.8]} 14... Bc4 {[%clk 0:02:12.3]} 15. Bc3 {[%clk
0:02:21.8]} 15... e4 {[%clk 0:02:04.4]} 16. f4 {[%clk 0:02:19.9]} 16... Ng4+
{[%clk 0:02:03.4]} 17. Kg1 {[%clk 0:02:15.7]} 17... Nxe3 {[%clk 0:02:00.3]} 18.
Qf2 {[%clk 0:02:11.6]} 18... Ng4 {[%clk 0:01:55]} 19. Qd2 {[%clk 0:02:08.4]}
19... e3 {[%clk 0:01:44.4]} 20. Qd1 {[%clk 0:02:05.9]} 20... Nf2 {[%clk
0:01:41.2]} 21. Qh5 {[%clk 0:02:04.3]} 21... g6 {[%clk 0:01:25.1]} 22. Qh4
{[%clk 0:01:52]} 22... Nxh1 {[%clk 0:01:19.1]} 23. Kxh1 {[%clk 0:01:50.5]} 23...
a4 {[%clk 0:01:09]} 24. Nc1 {[%clk 0:01:42.7]} 24... Qd8 {[%clk 0:01:01.4]} 25.
Qg4 {[%clk 0:01:37.4]} 25... e2 {[%clk 0:00:48.9]} 26. Ncxe2 {[%clk 0:01:35.7]}
26... Bxe2 {[%clk 0:00:49.8]} 27. Nxe2 {[%clk 0:01:35.6]} 27... Qe7 {[%clk
0:00:47.7]} 28. Ng3 {[%clk 0:01:31.1]} 28... Bb4 {[%clk 0:00:36.7]} 29. h4
{[%clk 0:01:22.3]} 29... Bxc3 {[%clk 0:00:35.4]} 30. bxc3 {[%clk 0:01:22.1]}
30... Kh8 {[%clk 0:00:28.8]} 31. h5 {[%clk 0:01:21.1]} 31... Qf6 {[%clk
0:00:22]} 32. h6 {[%clk 0:01:14.9]} 32... Re3 {[%clk 0:00:19.6]} 33. Rc1 {[%clk
0:01:06.8]} 33... Rae8 {[%clk 0:00:19.3]} 34. f5 {[%clk 0:01:05.4]} 34... Rg8
{[%clk 0:00:13]} 35. Qf4 {[%clk 0:01:03.1]} 35... Re7 {[%clk 0:00:11.6]} 36. Rf1
{[%clk 0:01:02.7]} 36... g5 {[%clk 0:00:11.3]} 37. Qg4 {[%clk 0:01:02.7]} 37...
Qxh6+ {[%clk 0:00:11.7]} 38. Nh5 {[%clk 0:01:01.7]} 38... f6 {[%clk 0:00:11.5]}
39. Kg1 {[%clk 0:01:01.1]} 39... Re4 {[%clk 0:00:11.8]} 40. Qd1 {[%clk
0:00:58.8]} 40... Rh4 {[%clk 0:00:11.1]} 41. Ng3 {[%clk 0:00:57.5]} 41... Rf4
{[%clk 0:00:09.7]} 42. Re1 {[%clk 0:00:55]} 42... Rf8 {[%clk 0:00:04.4]} 43. Re7
{[%clk 0:00:55.1]} 43... Qh4 {[%clk 0:00:04]} 44. Qd3 {[%clk 0:00:54.3]} 44...
Rg4 {[%clk 0:00:03.5]} 45. Nf1 {[%clk 0:00:52.6]} 45... Rf4 {[%clk 0:00:03.6]}
46. Qe2 {[%clk 0:00:45.4]} 46... Qg4 {[%clk 0:00:03.8]} 47. Qe3 {[%clk
0:00:44.7]} 47... Qh5 {[%clk 0:00:03]} 48. Rc7 {[%clk 0:00:43.5]} 48... Re4
{[%clk 0:00:03.3]} 49. Qg3 {[%clk 0:00:42.8]} 49... Qg4 {[%clk 0:00:03.4]} 50.
Qxg4 {[%clk 0:00:42.7]} 50... Rxg4 {[%clk 0:00:04.3]} 51. Rxc6 {[%clk
0:00:42.9]} 51... Rf4 {[%clk 0:00:04.5]} 52. Ne3 {[%clk 0:00:41.8]} 52... Re8
{[%clk 0:00:04.3]} 53. Nxd5 {[%clk 0:00:41.6]} 53... Rxf5 {[%clk 0:00:04.6]} 54.
Nxf6 {[%clk 0:00:41.9]} 54... Re1+ {[%clk 0:00:05.3]} 55. Kh2 {[%clk 0:00:41.8]}
55... Kg7 {[%clk 0:00:05.6]} 56. Ng4 {[%clk 0:00:41.2]} 56... h5 {[%clk
0:00:05.6]} 57. Ne5 {[%clk 0:00:41.6]} 57... h4 {[%clk 0:00:05.1]} 58. c4 {[%clk
0:00:40.1]} 58... Rd1 {[%clk 0:00:05.1]} 59. Rd6 {[%clk 0:00:39.6]} 59... Rff1
{[%clk 0:00:05.6]} 60. Kh3 {[%clk 0:00:39]} 60... Rd3+ {[%clk 0:00:05.4]} 61.
Kg4 {[%clk 0:00:39]} 61... Ra3 {[%clk 0:00:05.2]} 62. Kxg5 {[%clk 0:00:39]}
62... Rg3+ {[%clk 0:00:05.3]} 63. Kxh4 {[%clk 0:00:39.2]} 63... Rxg2 {[%clk
0:00:05.9]} 64. Kh3 {[%clk 0:00:37.7]} 64... Rxa2 {[%clk 0:00:05.2]} 65. Rg6+
{[%clk 0:00:36.5]} 65... Kf8 {[%clk 0:00:05.1]} 66. Rg3 {[%clk 0:00:36.2]} 66...
Rb1 {[%clk 0:00:05]} 67. d5 {[%clk 0:00:36.2]} 67... Rb3 {[%clk 0:00:05.4]} 68.
d6 {[%clk 0:00:35.8]} 68... Rxg3+ {[%clk 0:00:05.2]} 69. Kxg3 {[%clk 0:00:35.8]}
69... Ke8 {[%clk 0:00:06.1]} 70. c5 {[%clk 0:00:35.5]} 70... Rc2 {[%clk
0:00:06]} 71. c6 {[%clk 0:00:35.5]} 71... a3 {[%clk 0:00:06.3]} 72. d7+ {[%clk
0:00:35.7]} 72... Ke7 {[%clk 0:00:06.9]} 73. Nf7 {[%clk 0:00:33.9]} 73... Rd2
{[%clk 0:00:03.6]} 74. Ne5 {[%clk 0:00:24.6]} 74... a2 {[%clk 0:00:02.8]} 75. c7
{[%clk 0:00:25.1]} 75... Rxd7 {[%clk 0:00:01.1]} 76. c8=Q {[%clk 0:00:24.9]}
76... Rd3+ {[%clk 0:00:01.8]} 77. Nxd3 {[%clk 0:00:23.3]} 77... a1=Q {[%clk
0:00:02.7]} 78. Qc5+ {[%clk 0:00:23.3]} 78... Kd7 {[%clk 0:00:02.9]} 79. Qd5+
{[%clk 0:00:23.5]} 79... Kc7 {[%clk 0:00:03.3]} 80. Qc5+ {[%clk 0:00:23.6]}
80... Kb7 {[%clk 0:00:03.8]} 81. Qd5+ {[%clk 0:00:22]} 81... Kc7 {[%clk
0:00:04.1]} 82. Ne5 {[%clk 0:00:21.4]} 82... Qa3+ {[%clk 0:00:03.9]} 83. Kf4
{[%clk 0:00:21.9]} 83... Qd6 {[%clk 0:00:04.8]} 84. Qf7+ {[%clk 0:00:20.6]}
84... Kb6 {[%clk 0:00:04.8]} 85. Kf5 {[%clk 0:00:17.4]} 85... Qd1 {[%clk
0:00:04.1]} 86. Qe6+ {[%clk 0:00:15.3]} 86... Kb5 {[%clk 0:00:03.6]} 87. Qe8+
{[%clk 0:00:14.4]} 87... Kb6 {[%clk 0:00:04]} 88. Qb8+ {[%clk 0:00:14.6]} 88...
Kc5 {[%clk 0:00:04.2]} 89. Qc7+ {[%clk 0:00:14.3]} 89... Kb4 {[%clk 0:00:04.6]}
90. Qb6+ {[%clk 0:00:14.2]} 90... Kc3 {[%clk 0:00:04.9]} 91. Qc5+ {[%clk
0:00:14.4]} 91... Kd2 {[%clk 0:00:05.4]} 92. Nc4+ {[%clk 0:00:13.7]} 92... Ke1
{[%clk 0:00:05.6]} 93. Qe3+ {[%clk 0:00:13.3]} 93... Qe2 {[%clk 0:00:05.6]} 94.
Qc1+ {[%clk 0:00:13.6]} 94... Qd1 {[%clk 0:00:05.9]} 95. Qc3+ {[%clk 0:00:14.1]}
95... Kf1 {[%clk 0:00:05.8]} 96. Ne3+ {[%clk 0:00:14.7]} 96... Ke2 {[%clk
0:00:05.4]} 97. Nxd1 {[%clk 0:00:15.4]} 1-0

[Event "Late-Titled-Tuesday-Blitz-July-09-2024"]
[Site "Chess.com"]
[Date "2024.07.09"]
[Round "10"]
[White "Msb2"]
[Black "Arysya"]
[Result "1/2-1/2"]
[WhiteElo "3081"]
[BlackElo "2920"]
[TimeControl "180+1"]
[EndTime "15:57:37 PDT"]
[Termination "Game drawn by 50-move rule"]

1. d4 {[%clk 0:03:00.9]} 1... Nf6 {[%clk 0:02:57.6]} 2. c4 {[%clk 0:03:01.2]}
2... e6 {[%clk 0:02:58.1]} 3. Nc3 {[%clk 0:03:01.5]} 3... Bb4 {[%clk 0:02:57.5]}
4. e3 {[%clk 0:03:02]} 4... O-O {[%clk 0:02:56.5]} 5. Bd2 {[%clk 0:03:02.6]}
5... d5 {[%clk 0:02:45.3]} 6. Nf3 {[%clk 0:03:01.4]} 6... b6 {[%clk 0:02:42]} 7.
cxd5 {[%clk 0:03:01.6]} 7... exd5 {[%clk 0:02:41.4]} 8. Rc1 {[%clk 0:03:02.3]}
8... a6 {[%clk 0:02:37.9]} 9. Bd3 {[%clk 0:03:00.1]} 9... Re8 {[%clk 0:02:36.3]}
10. Ne5 {[%clk 0:02:59.8]} 10... Bb7 {[%clk 0:02:26.7]} 11. O-O {[%clk
0:02:59.5]} 11... Nbd7 {[%clk 0:02:24.7]} 12. f4 {[%clk 0:02:58.4]} 12... c5
{[%clk 0:02:20.1]} 13. a3 {[%clk 0:02:55.6]} 13... Bxc3 {[%clk 0:02:18.5]} 14.
Bxc3 {[%clk 0:02:56.5]} 14... c4 {[%clk 0:02:17.3]} 15. Bf5 {[%clk 0:02:55]}
15... b5 {[%clk 0:02:03.8]} 16. Qf3 {[%clk 0:02:51.1]} 16... Nf8 {[%clk
0:02:00.5]} 17. Qg3 {[%clk 0:02:34.2]} 17... a5 {[%clk 0:01:49.5]} 18. Kh1
{[%clk 0:02:21.2]} 18... Qd6 {[%clk 0:01:45.4]} 19. Qe1 {[%clk 0:02:20.7]} 19...
Qb6 {[%clk 0:01:42.2]} 20. Rd1 {[%clk 0:02:19.4]} 20... Red8 {[%clk 0:01:34.6]}
21. Rg1 {[%clk 0:02:09.9]} 21... Ne4 {[%clk 0:01:33.5]} 22. Bxe4 {[%clk
0:02:09.3]} 22... dxe4 {[%clk 0:01:34.4]} 23. d5 {[%clk 0:02:10.2]} 23... f6
{[%clk 0:01:30.1]} 24. Ng4 {[%clk 0:02:09]} 24... Rxd5 {[%clk 0:01:03.3]} 25.
Rxd5 {[%clk 0:02:07.4]} 25... Bxd5 {[%clk 0:01:04.2]} 26. Qg3 {[%clk 0:02:07.8]}
26... Kh8 {[%clk 0:01:02.5]} 27. f5 {[%clk 0:01:59.7]} 27... b4 {[%clk
0:00:47.2]} 28. Bd4 {[%clk 0:01:59.8]} 28... Qb8 {[%clk 0:00:46.7]} 29. Qh4
{[%clk 0:01:55.7]} 29... Nd7 {[%clk 0:00:45.5]} 30. Nxf6 {[%clk 0:01:45]} 30...
gxf6 {[%clk 0:00:45.6]} 31. Bxf6+ {[%clk 0:01:45.9]} 31... Nxf6 {[%clk
0:00:46.2]} 32. Qxf6+ {[%clk 0:01:46.8]} 32... Kg8 {[%clk 0:00:46.9]} 33. Qg5+
{[%clk 0:01:47.7]} 33... Kh8 {[%clk 0:00:42.4]} 34. Qf6+ {[%clk 0:01:43.2]}
34... Kg8 {[%clk 0:00:42.4]} 35. Rf1 {[%clk 0:01:21.9]} 35... Ra7 {[%clk
0:00:32.5]} 36. Rd1 {[%clk 0:01:17.3]} 36... Rf7 {[%clk 0:00:19.3]} 37. Qg5+
{[%clk 0:01:14.9]} 37... Rg7 {[%clk 0:00:19.9]} 38. Qh6 {[%clk 0:01:15.4]} 38...
Qe5 {[%clk 0:00:17.8]} 39. axb4 {[%clk 0:01:09.5]} 39... axb4 {[%clk 0:00:12.3]}
40. Qb6 {[%clk 0:01:08.8]} 40... Qxf5 {[%clk 0:00:09.6]} 41. Qd8+ {[%clk
0:00:54.9]} 41... Kf7 {[%clk 0:00:09.2]} 42. Qxd5+ {[%clk 0:00:55.6]} 42... Qxd5
{[%clk 0:00:08.9]} 43. Rxd5 {[%clk 0:00:56.5]} 43... Ke6 {[%clk 0:00:04.1]} 44.
Rc5 {[%clk 0:00:57.1]} 44... Ra7 {[%clk 0:00:04.8]} 45. h4 {[%clk 0:00:56.8]}
45... Ra1+ {[%clk 0:00:05.1]} 46. Kh2 {[%clk 0:00:57.1]} 46... Rc1 {[%clk
0:00:06]} 47. Kg3 {[%clk 0:00:54.2]} 47... Rc2 {[%clk 0:00:05]} 48. Kf4 {[%clk
0:00:52.6]} 48... Rxb2 {[%clk 0:00:02.8]} 49. Rxc4 {[%clk 0:00:52.9]} 49... b3
{[%clk 0:00:02.8]} 50. Rxe4+ {[%clk 0:00:50.4]} 50... Kf6 {[%clk 0:00:03.4]} 51.
Rb4 {[%clk 0:00:51.3]} 51... Rxg2 {[%clk 0:00:03.2]} 52. Rb6+ {[%clk 0:00:51.2]}
52... Kf7 {[%clk 0:00:02.8]} 53. Rxb3 {[%clk 0:00:52.1]} 53... h5 {[%clk
0:00:03.4]} 54. Rb7+ {[%clk 0:00:49.3]} 54... Kf6 {[%clk 0:00:03.3]} 55. Rb6+
{[%clk 0:00:50]} 55... Kf7 {[%clk 0:00:03.7]} 56. Kf5 {[%clk 0:00:46.6]} 56...
Rg4 {[%clk 0:00:03.5]} 57. e4 {[%clk 0:00:42.8]} 57... Rxh4 {[%clk 0:00:03.6]}
58. e5 {[%clk 0:00:43.5]} 58... Rg4 {[%clk 0:00:02]} 59. Rb7+ {[%clk 0:00:44.2]}
59... Ke8 {[%clk 0:00:01.9]} 60. Kf6 {[%clk 0:00:44.9]} 60... Rf4+ {[%clk
0:00:01.2]} 61. Ke6 {[%clk 0:00:45.6]} 61... Kf8 {[%clk 0:00:01.3]} 62. Rh7
{[%clk 0:00:45.5]} 62... h4 {[%clk 0:00:01.4]} 63. Rh5 {[%clk 0:00:33.6]} 63...
Re4 {[%clk 0:00:01.2]} 64. Kf5 {[%clk 0:00:32.7]} 64... Rb4 {[%clk 0:00:01.5]}
65. Kf6 {[%clk 0:00:30.1]} 65... Rf4+ {[%clk 0:00:01.3]} 66. Ke6 {[%clk
0:00:27.3]} 66... Ra4 {[%clk 0:00:02.2]} 67. Kf5 {[%clk 0:00:23.8]} 67... Kg7
{[%clk 0:00:02.4]} 68. Rg5+ {[%clk 0:00:22.8]} 68... Kf7 {[%clk 0:00:02.9]} 69.
Rg1 {[%clk 0:00:11.1]} 69... Rb4 {[%clk 0:00:03.2]} 70. Ra1 {[%clk 0:00:10.7]}
70... Kg7 {[%clk 0:00:02.7]} 71. Ra7+ {[%clk 0:00:11]} 71... Kf8 {[%clk
0:00:03.3]} 72. Kg5 {[%clk 0:00:10]} 72... h3 {[%clk 0:00:03.3]} 73. Rh7 {[%clk
0:00:09.7]} 73... Rb3 {[%clk 0:00:03.7]} 74. e6 {[%clk 0:00:10]} 74... Re3
{[%clk 0:00:03.7]} 75. Kf6 {[%clk 0:00:08.9]} 75... Rf3+ {[%clk 0:00:04.2]} 76.
Ke5 {[%clk 0:00:09.6]} 76... Re3+ {[%clk 0:00:04.8]} 77. Kf5 {[%clk 0:00:10.2]}
77... Ke8 {[%clk 0:00:04.6]} 78. Kf6 {[%clk 0:00:04.5]} 78... Rf3+ {[%clk
0:00:04.9]} 79. Ke5 {[%clk 0:00:05.1]} 79... Re3+ {[%clk 0:00:05.5]} 80. Kd5
{[%clk 0:00:05.8]} 80... Rd3+ {[%clk 0:00:05.5]} 81. Ke4 {[%clk 0:00:06.2]}
81... Ra3 {[%clk 0:00:05.9]} 82. Ke5 {[%clk 0:00:06.5]} 82... Re3+ {[%clk
0:00:06.2]} 83. Kd5 {[%clk 0:00:06.1]} 83... Rd3+ {[%clk 0:00:06.5]} 84. Ke4
{[%clk 0:00:06.5]} 84... Ra3 {[%clk 0:00:07]} 85. Kf4 {[%clk 0:00:07.2]} 85...
Rb3 {[%clk 0:00:07.1]} 86. Kg4 {[%clk 0:00:07.6]} 86... Re3 {[%clk 0:00:07.3]}
87. Kg5 {[%clk 0:00:04.9]} 87... Rxe6 {[%clk 0:00:07.1]} 88. Rh8+ {[%clk
0:00:05.6]} 88... Kd7 {[%clk 0:00:07.4]} 89. Rxh3 {[%clk 0:00:06.5]} 89... Re5+
{[%clk 0:00:07.4]} 90. Kf6 {[%clk 0:00:07]} 90... Re6+ {[%clk 0:00:08]} 91. Kf5
{[%clk 0:00:07.3]} 91... Rd6 {[%clk 0:00:08.3]} 92. Ke5 {[%clk 0:00:07.4]} 92...
Re6+ {[%clk 0:00:08.5]} 93. Kd5 {[%clk 0:00:08.1]} 93... Rd6+ {[%clk 0:00:09.1]}
94. Kc5 {[%clk 0:00:08.8]} 94... Rc6+ {[%clk 0:00:09.7]} 95. Kb5 {[%clk
0:00:09.1]} 95... Rg6 {[%clk 0:00:09.9]} 96. Rh7+ {[%clk 0:00:09.9]} 96... Kd6
{[%clk 0:00:09.9]} 97. Ra7 {[%clk 0:00:10.2]} 97... Rg5+ {[%clk 0:00:10]} 98.
Kc4 {[%clk 0:00:10.8]} 98... Rg4+ {[%clk 0:00:10.4]} 99. Kd3 {[%clk 0:00:11.4]}
99... Rh4 {[%clk 0:00:10]} 100. Ra5 {[%clk 0:00:10.9]} 100... Kc7 {[%clk
0:00:10.3]} 101. Rd5 {[%clk 0:00:10.1]} 101... Kb7 {[%clk 0:00:10.4]} 102. Rc5
{[%clk 0:00:10.3]} 102... Kb6 {[%clk 0:00:10.5]} 103. Rc8 {[%clk 0:00:10.1]}
103... Kb7 {[%clk 0:00:10.7]} 104. Rc1 {[%clk 0:00:10.1]} 104... Kb6 {[%clk
0:00:11]} 105. Kc3 {[%clk 0:00:10.7]} 105... Kb7 {[%clk 0:00:10.7]} 106. Rg1
{[%clk 0:00:10.8]} 106... Kb6 {[%clk 0:00:10.9]} 107. Rg5 {[%clk 0:00:11.1]}
107... Kc6 {[%clk 0:00:11]} 108. Kd3 {[%clk 0:00:11.8]} 108... Kd6 {[%clk
0:00:11.4]} 109. Ke3 {[%clk 0:00:12.5]} 109... Ke6 {[%clk 0:00:11.8]} 110. Kf3
{[%clk 0:00:13]} 110... Kf6 {[%clk 0:00:12.3]} 111. Rb5 {[%clk 0:00:13.7]}
111... Ra4 {[%clk 0:00:12.3]} 112. Rc5 {[%clk 0:00:14.1]} 112... Ke6 {[%clk
0:00:12.8]} 113. Rh5 {[%clk 0:00:14.1]} 113... Kf6 {[%clk 0:00:13.1]} 114. Ke3
{[%clk 0:00:14.3]} 114... Kg6 {[%clk 0:00:13.5]} 115. Rd5 {[%clk 0:00:14.3]}
115... Kf6 {[%clk 0:00:13.9]} 116. Rc5 {[%clk 0:00:14.6]} 116... Ke6 {[%clk
0:00:14.2]} 117. Kd3 {[%clk 0:00:14.7]} 117... Kd6 {[%clk 0:00:14.6]} 118. Rh5
{[%clk 0:00:15.2]} 118... Kc6 {[%clk 0:00:14.7]} 119. Rf5 {[%clk 0:00:15.5]}
119... Kd6 {[%clk 0:00:14.9]} 120. Rg5 {[%clk 0:00:14.5]} 120... Ke6 {[%clk
0:00:15.2]} 121. Kc3 {[%clk 0:00:15.2]} 121... Rh4 {[%clk 0:00:14.5]} 122. Rb5
{[%clk 0:00:15.3]} 122... Kf6 {[%clk 0:00:15]} 123. Ra5 {[%clk 0:00:15.8]}
123... Kg6 {[%clk 0:00:15.4]} 124. Rc5 {[%clk 0:00:15.5]} 124... Rh5 {[%clk
0:00:15.9]} 125. Rc6+ {[%clk 0:00:15.4]} 125... Kg5 {[%clk 0:00:16.4]} 126. Kd4
{[%clk 0:00:15.9]} 126... Rh4+ {[%clk 0:00:14.2]} 127. Ke5 {[%clk 0:00:16.4]}
127... Rh1 {[%clk 0:00:14]} 128. Rc8 {[%clk 0:00:16.8]} 128... Re1+ {[%clk
0:00:14.2]} 129. Kd4 {[%clk 0:00:17.4]} 129... Kf6 {[%clk 0:00:14]} 130. Kd3
{[%clk 0:00:17.1]} 130... Re7 {[%clk 0:00:12.6]} 131. Kd4 {[%clk 0:00:16.2]}
131... Kf7 {[%clk 0:00:13]} 132. Kd5 {[%clk 0:00:16.3]} 132... Re1 {[%clk
0:00:13.1]} 133. Rc2 {[%clk 0:00:16.5]} 133... Ke7 {[%clk 0:00:12.7]} 134. Rd2
{[%clk 0:00:16]} 134... Ke8 {[%clk 0:00:11.9]} 135. Kd6 {[%clk 0:00:16.4]}
135... Re3 {[%clk 0:00:10.5]} 136. Rd4 {[%clk 0:00:16.2]} 136... Re1 {[%clk
0:00:10.5]} 137. Rh4 {[%clk 0:00:15.8]} 137... Kf8 {[%clk 0:00:10.4]} 138. Kd5
{[%clk 0:00:16.1]} 138... Kg8 {[%clk 0:00:10.7]} 139. Re4 {[%clk 0:00:16.4]}
1/2-1/2

[Event "Late-Titled-Tuesday-Blitz-July-09-2024"]
[Site "Chess.com"]
[Date "2024.07.09"]
[Round "11"]
[White "EternalNight8"]
[Black "JoJoZP"]
[Result "0-1"]
[WhiteElo "2381"]
[BlackElo "2538"]
[TimeControl "180+1"]
[EndTime "15:59:19 PDT"]
[Termination "JoJoZP won by resignation"]

1. e4 {[%clk 0:03:00.9]} 1... c5 {[%clk 0:02:59.5]} 2. Nf3 {[%clk 0:03:01.2]}
2... d6 {[%clk 0:02:59.7]} 3. d4 {[%clk 0:03:01.7]} 3... cxd4 {[%clk 0:03:00.6]}
4. Nxd4 {[%clk 0:03:02.4]} 4... Nf6 {[%clk 0:03:00.8]} 5. Nc3 {[%clk 0:03:03]}
5... a6 {[%clk 0:03:01.5]} 6. Bg5 {[%clk 0:03:02.8]} 6... Nbd7 {[%clk
0:03:01.1]} 7. f4 {[%clk 0:03:02.5]} 7... Qa5 {[%clk 0:03:00.6]} 8. Qf3 {[%clk
0:02:39.8]} 8... h6 {[%clk 0:03:00.5]} 9. Bxf6 {[%clk 0:02:38.7]} 9... Nxf6
{[%clk 0:03:01.4]} 10. f5 {[%clk 0:02:34.1]} 10... g5 {[%clk 0:03:01.1]} 11.
fxg6 {[%clk 0:02:28.6]} 11... fxg6 {[%clk 0:03:01]} 12. Bc4 {[%clk 0:02:24.2]}
12... Qc5 {[%clk 0:02:50.6]} 13. Bb3 {[%clk 0:02:22.1]} 13... Qxd4 {[%clk
0:02:48]} 0-1